fUST/lending_fUST_20250210
["ID","MTS","AMOUNT","RATE_DAILY","PERIOD"]
[352497212,1739137886641,-560.20678144,0.0001315,2]
[352497213,1739137886651,-1103.48,0.0001315,2]
[352497214,1739137886661,-724.02,0.0001315,2]
[352497215,1739137886671,-500.0,0.0001315,2]
[352497216,1739137886681,-824.2,0.0001315,2]
[352497217,1739137886693,-824.85,0.0001315,2]
[352497218,1739137886703,-633.47,0.0001315,2]
[352497219,1739137886712,-660.79,0.0001315,2]
[352497220,1739137886722,-1548.94,0.0001315,2]
[352497221,1739137886732,-1526.67,0.0001315,2]
[352497222,1739137886742,-1271.62,0.0001315,2]
[352497223,1739137886753,-1037.54,0.0001315,2]
[352497224,1739137886763,-1491.1,0.0001315,2]
[352497225,1739137886773,-500.0,0.0001315,2]
[352497226,1739137886782,-401.07150083,0.0001315,2]
[352497227,1739137886795,-774.85,0.0001315,2]
[352497228,1739137886805,-500.0,0.0001315,2]
[352497229,1739137886814,-1332.36,0.0001315,2]
[352497230,1739137886824,-784.54,0.0001315,2]
[352497231,1739137886833,-884.06,0.0001315,2]
[352497232,1739137886843,-1472.41,0.0001315,2]
[352497233,1739137886852,-770.2,0.0001315,2]
[352497234,1739137886862,-500.0,0.0001315,2]
[352497235,1739137886872,-500.0,0.0001315,2]
[352497236,1739137886881,-296.8,0.0001315,2]
[352497237,1739137886890,-500.0,0.0001315,2]
[352497238,1739137886900,-500.0,0.0001315,2]
[352497239,1739137886910,-788.28,0.0001315,2]
[352497240,1739137886920,-567.03,0.0001315,2]
[352497241,1739137886930,-596.87,0.0001315,2]
[352497242,1739137886939,-500.0,0.0001315,2]
[352497243,1739137886949,-1144.56,0.0001315,2]
[352497244,1739137886960,-500.0,0.0001315,2]
[352497245,1739137886970,-528.07,0.0001315,2]
[352497246,1739137886980,-1316.1,0.0001315,2]
[352497247,1739137886990,-533.35,0.0001315,2]
[352497248,1739137886999,-1927.7,0.0001315,2]
[352497249,1739137887009,-7284.82,0.0001315,2]
[352497250,1739137887018,-500.0,0.0001315,2]
[352497251,1739137887028,-847.12,0.0001315,2]
[352497252,1739137887040,-954.01,0.0001315,2]
[352497253,1739137887050,-2180.19,0.0001315,2]
[352497254,1739137887060,-500.0,0.0001315,2]
[352497255,1739137887069,-842.26,0.0001315,2]
[352497256,1739137887079,-883.86,0.0001315,2]
[352497257,1739137887088,-500.0,0.0001315,2]
[352497258,1739137887099,-500.0,0.0001315,2]
[352497259,1739137887109,-151.0,0.0001315,2]
[352497260,1739137887119,-43935.02,0.0001315,2]
[352497261,1739137887130,-2712.8,0.0001315,2]
[352497262,1739137887140,-860.57,0.0001315,2]
[352497263,1739137887150,-2341.03,0.0001315,2]
[352497264,1739137887159,-3861.99,0.0001315,2]
[352497265,1739137887169,-1171.53,0.0001315,2]
[352497266,1739137887179,-883.39,0.0001315,2]
[352497267,1739137887189,-3532.66,0.0001315,2]
[352497268,1739137887199,-500.0,0.0001315,2]
[352497269,1739137887208,-895.17,0.0001315,2]
[352497270,1739137887217,-4555.54,0.0001315,2]
[352497271,1739137887227,-1716.4,0.0001315,2]
[352497272,1739137887236,-500.0,0.0001315,2]
[352497273,1739137887245,-500.0,0.0001315,2]
[352497274,1739137887254,-22724.31,0.0001315,2]
[352497275,1739137887264,-303.22966448,0.0001315,2]
[352497276,1739137887274,-584.12,0.0001315,2]
[352497277,1739137887287,-500.0,0.0001315,2]
[352497278,1739137887296,-2591.58,0.0001315,2]
[352497279,1739137887306,-512.6,0.0001315,2]
[352497280,1739137887315,-1831.71,0.0001315,2]
[352497281,1739137887326,-1387.72,0.0001315,2]
[352497282,1739137887336,-500.0,0.0001315,2]
[352497283,1739137887345,-4876.14,0.0001315,2]
[352497284,1739137887355,-500.0,0.0001315,2]
[352497285,1739137887364,-500.0,0.0001315,2]
[352497286,1739137887373,-500.0,0.0001315,2]
[352497287,1739137887383,-392.05733711,0.0001315,2]
[352497288,1739137887392,-1527.52,0.0001315,2]
[352497289,1739137887401,-500.0,0.0001315,2]
[352497290,1739137887411,-1081.99,0.0001315,2]
[352497291,1739137887421,-151.0,0.00013151,2]
[352497292,1739137887431,-153.0,0.0001316,2]
[352497293,1739137887441,-153.0,0.0001316,2]
[352497294,1739137887450,-153.0,0.0001316,2]
[352497295,1739137887459,-153.0,0.0001316,2]
[352497296,1739137887469,-153.0,0.0001316,2]
[352497297,1739137887479,-153.0,0.0001316,2]
[352497298,1739137887488,-153.0,0.0001316,2]
[352497299,1739137887498,-153.0,0.0001316,2]
[352497300,1739137887507,-153.0,0.0001316,2]
[352497301,1739137887516,-153.0,0.0001316,2]
[352497302,1739137887526,-153.0,0.0001316,2]
[352497303,1739137887537,-153.0,0.0001316,2]
[352497304,1739137887547,-153.0,0.0001316,2]
[352497305,1739137887556,-153.0,0.0001316,2]
[352497306,1739137887566,-230.82,0.0001316,2]
[352497307,1739137887576,-160.0,0.0001316,8]
[352497308,1739137887592,-1483.12351443,0.00013167,2]
[352497309,1739137887609,-224.28772442,0.00013178,2]
[352497310,1739137887620,-818.33794944,0.00013196,2]
[352497311,1739137887631,-158.0,0.00013205,2]
[352497312,1739137887641,-158.0,0.00013205,2]
[352497313,1739137887651,-158.0,0.00013205,2]
[352497314,1739137887662,-158.0,0.00013205,2]
[352497315,1739137887672,-158.0,0.00013205,2]
[352497316,1739137887682,-158.0,0.00013205,2]
[352497317,1739137887691,-158.0,0.00013205,2]
[352497318,1739137887700,-158.0,0.00013205,2]
[352497319,1739137887710,-158.0,0.00013205,2]
[352497320,1739137887719,-158.0,0.00013205,2]
[352497321,1739137887729,-158.0,0.00013205,2]
[352497322,1739137887738,-158.0,0.00013205,2]
[352497323,1739137887748,-158.0,0.00013205,2]
[352497324,1739137887757,-158.0,0.00013205,2]
[352497325,1739137887766,-158.0,0.00013205,2]
[352497326,1739137887776,-158.0,0.00013205,2]
[352497327,1739137887788,-158.0,0.00013205,2]
[352497328,1739137887798,-169.18,0.00013205,2]
[352497329,1739137887808,-153.0,0.00013205,2]
[352497330,1739137887818,-153.0,0.00013205,2]
[352497331,1739137887828,-153.0,0.00013205,2]
[352497332,1739137887839,-153.0,0.00013205,2]
[352497333,1739137887849,-153.0,0.00013205,2]
[352497334,1739137887859,-153.0,0.00013205,2]
[352497335,1739137887868,-153.0,0.00013205,2]
[352497336,1739137887878,-153.0,0.00013205,2]
[352497337,1739137887887,-153.0,0.00013205,2]
[352497338,1739137887897,-153.0,0.00013205,2]
[352497339,1739137887907,-153.0,0.00013205,2]
[352497340,1739137887917,-153.0,0.00013205,2]
[352497341,1739137887927,-153.0,0.00013205,2]
[352497342,1739137887938,-153.0,0.00013205,2]
[352497343,1739137887947,-153.0,0.00013205,2]
[352497344,1739137887956,-153.0,0.00013205,2]
[352497345,1739137887968,-153.0,0.00013205,2]
[352497346,1739137887978,-153.0,0.00013205,2]
[352497347,1739137887987,-239.92,0.00013205,2]
[352497348,1739137887998,-587.0,0.00013232,2]
[352497349,1739137888007,-224.28772442,0.0001326,2]
[352497350,1739137888017,-500.0,0.00013263,2]
[352497351,1739137888027,-1483.12351443,0.00013267,2]
[352497352,1739137888039,-900.698447,0.00013287,2]
[352497353,1739137888048,-866.0,0.00013287,2]
[352497354,1739137888214,-500.0,0.00013287,2]
[352497355,1739137888225,-511.53,0.00013287,2]
[352497356,1739137888235,-500.0,0.00013287,2]
[352497357,1739137888244,-500.0,0.00013287,2]
[352497358,1739137888254,-500.0,0.00013287,2]
[352497359,1739137888264,-738.43,0.00013287,2]
[352497360,1739137888274,-517.69,0.00013287,2]
[352497361,1739137888284,-503.93,0.00013287,2]
[352497362,1739137888297,-1103.48,0.00013287,2]
[352497363,1739137888308,-724.02,0.00013287,2]
[352497364,1739137888319,-500.0,0.00013287,2]
[352497365,1739137888329,-824.2,0.00013287,2]
[352497366,1739137888339,-824.85,0.00013287,2]
[352497367,1739137888349,-633.47,0.00013287,2]
[352497368,1739137888360,-660.79,0.00013287,2]
[352497369,1739137888371,-1548.94,0.00013287,2]
[352497370,1739137888382,-1526.67,0.00013287,2]
[352497371,1739137888392,-1271.62,0.00013287,2]
[352497372,1739137888402,-1037.54,0.00013287,2]
[352497373,1739137888412,-1491.1,0.00013287,2]
[352497374,1739137888422,-500.0,0.00013287,2]
[352497375,1739137888433,-774.85,0.00013287,2]
[352497376,1739137888443,-595.10750785,0.00013287,2]
[352497377,1739137888453,-1332.36,0.00013287,2]
[352497378,1739137888463,-784.54,0.00013287,2]
[352497379,1739137888473,-884.06,0.00013287,2]
[352497380,1739137888483,-1472.41,0.00013287,2]
[352497381,1739137888493,-770.2,0.00013287,2]
[352497382,1739137888503,-500.0,0.00013287,2]
[352497383,1739137888513,-500.0,0.00013287,2]
[352497384,1739137888522,-500.0,0.00013287,2]
[352497385,1739137888532,-500.0,0.00013287,2]
[352497386,1739137888545,-788.28,0.00013287,2]
[352497387,1739137888555,-567.03,0.00013287,2]
[352497388,1739137888565,-596.87,0.00013287,2]
[352497389,1739137888574,-500.0,0.00013287,2]
[352497390,1739137888584,-1144.56,0.00013287,2]
[352497391,1739137888594,-500.0,0.00013287,2]
[352497392,1739137888603,-528.07,0.00013287,2]
[352497393,1739137888612,-1316.1,0.00013287,2]
[352497394,1739137888622,-533.35,0.00013287,2]
[352497395,1739137888631,-1927.7,0.00013287,2]
[352497396,1739137888642,-7284.82,0.00013287,2]
[352497397,1739137888651,-513.10291163,0.00013287,2]
[352497398,1739137888661,-847.12,0.00013287,2]
[352497399,1739137888670,-954.01,0.00013287,2]
[352497400,1739137888680,-2180.19,0.00013287,2]
[352497401,1739137888690,-500.0,0.00013287,2]
[352497402,1739137888700,-842.26,0.00013287,2]
[352497403,1739137888709,-883.86,0.00013287,2]
[352497404,1739137888719,-500.0,0.00013287,2]
[352497405,1739137888728,-500.0,0.00013287,2]
[352497406,1739137888738,-178.699711,0.00013287,2]
[352497407,1739137888747,-43935.02,0.00013287,2]
[352497408,1739137888757,-2712.8,0.00013287,2]
[352497409,1739137888767,-860.57,0.00013287,2]
[352497410,1739137888776,-2341.03,0.00013287,2]
[352497411,1739137888790,-3861.99,0.00013287,2]
[352497412,1739137888800,-1171.53,0.00013287,2]
[352497413,1739137888810,-883.39,0.00013287,2]
[352497414,1739137888819,-3532.66,0.00013287,2]
[352497415,1739137888829,-500.0,0.00013287,2]
[352497416,1739137888838,-895.17,0.00013287,2]
[352497417,1739137888847,-4555.54,0.00013287,2]
[352497418,1739137888856,-1716.4,0.00013287,2]
[352497419,1739137888865,-500.0,0.00013287,2]
[352497420,1739137888875,-500.0,0.00013287,2]
[352497421,1739137888884,-22724.31,0.00013287,2]
[352497422,1739137888893,-584.12,0.00013287,2]
[352497423,1739137888903,-255.71707704,0.00013287,2]
[352497424,1739137888912,-2591.58,0.00013287,2]
[352497425,1739137888922,-512.6,0.00013287,2]
[352497426,1739137888931,-1831.71,0.00013287,2]
[352497427,1739137888940,-1387.72,0.00013287,2]
[352497428,1739137888950,-500.0,0.00013287,2]
[352497429,1739137888960,-4876.14,0.00013287,2]
[352497430,1739137888969,-500.0,0.00013287,2]
[352497431,1739137888979,-500.0,0.00013287,2]
[352497432,1739137888989,-500.0,0.00013287,2]
[352497433,1739137888998,-1527.52,0.00013287,2]
[352497434,1739137889008,-500.0,0.00013287,2]
[352497435,1739137889018,-1081.99,0.00013287,2]
[352497436,1739137889027,-840.8,0.000133,2]
[352497437,1739137889040,-224.28772442,0.00013315,2]
[352497438,1739137889049,-1483.12351443,0.00013367,2]
[352497439,1739137889059,-224.28772442,0.0001337,2]
[352497440,1739137889069,-160.0,0.00013374,9]
[352497441,1739137889079,-500.0,0.00013424,2]
[352497442,1739137889089,-511.53,0.00013424,2]
[352497443,1739137889101,-500.0,0.00013424,2]
[352497444,1739137889110,-500.0,0.00013424,2]
[352497445,1739137889120,-500.0,0.00013424,2]
[352497446,1739137889131,-738.43,0.00013424,2]
[352497447,1739137889142,-517.69,0.00013424,2]
[352497448,1739137889151,-503.93,0.00013424,2]
[352497449,1739137889161,-1103.48,0.00013424,2]
[352497450,1739137889171,-724.02,0.00013424,2]
[352497451,1739137889181,-500.0,0.00013424,2]
[352497452,1739137889191,-824.2,0.00013424,2]
[352497453,1739137889202,-824.85,0.00013424,2]
[352497454,1739137889213,-633.47,0.00013424,2]
[352497455,1739137889223,-660.79,0.00013424,2]
[352497456,1739137889232,-1548.94,0.00013424,2]
[352497457,1739137889243,-1526.67,0.00013424,2]
[352497458,1739137889252,-1271.62,0.00013424,2]
[352497459,1739137889262,-1037.54,0.00013424,2]
[352497460,1739137889271,-1491.1,0.00013424,2]
[352497461,1739137889281,-500.0,0.00013424,2]
[352497462,1739137889293,-774.85,0.00013424,2]
[352497463,1739137889303,-1332.36,0.00013424,2]
[352497464,1739137889313,-784.54,0.00013424,2]
[352497465,1739137889323,-884.06,0.00013424,2]
[352497466,1739137889332,-1472.41,0.00013424,2]
[352497467,1739137889342,-770.2,0.00013424,2]
[352497468,1739137889351,-500.0,0.00013424,2]
[352497469,1739137889361,-500.0,0.00013424,2]
[352497470,1739137889370,-500.0,0.00013424,2]
[352497471,1739137889381,-500.0,0.00013424,2]
[352497472,1739137889392,-788.28,0.00013424,2]
[352497473,1739137889402,-567.03,0.00013424,2]
[352497474,1739137889412,-596.87,0.00013424,2]
[352497475,1739137889422,-500.0,0.00013424,2]
[352497476,1739137889432,-1144.56,0.00013424,2]
[352497477,1739137889442,-500.0,0.00013424,2]
[352497478,1739137889451,-528.07,0.00013424,2]
[352497479,1739137889461,-1316.1,0.00013424,2]
[352497480,1739137889471,-533.35,0.00013424,2]
[352497481,1739137889481,-1927.7,0.00013424,2]
[352497482,1739137889490,-7284.82,0.00013424,2]
[352497483,1739137889500,-847.12,0.00013424,2]
[352497484,1739137889509,-954.01,0.00013424,2]
[352497485,1739137889519,-2180.19,0.00013424,2]
[352497486,1739137889528,-493.99,0.00013424,2]
[352497487,1739137889541,-842.26,0.00013424,2]
[352497488,1739137889552,-883.86,0.00013424,2]
[352497489,1739137889563,-500.0,0.00013424,2]
[352497490,1739137889574,-500.0,0.00013424,2]
[352497491,1739137889584,-43935.02,0.00013424,2]
[352497492,1739137889595,-2712.8,0.00013424,2]
[352497493,1739137889605,-860.57,0.00013424,2]
[352497494,1739137889615,-2341.03,0.00013424,2]
[352497495,1739137889625,-3861.99,0.00013424,2]
[352497496,1739137889635,-1171.53,0.00013424,2]
[352497497,1739137889645,-883.39,0.00013424,2]
[352497498,1739137889655,-3532.66,0.00013424,2]
[352497499,1739137889665,-500.0,0.00013424,2]
[352497500,1739137889675,-895.17,0.00013424,2]
[352497501,1739137889686,-4555.54,0.00013424,2]
[352497502,1739137889697,-1716.4,0.00013424,2]
[352497503,1739137889707,-500.0,0.00013424,2]
[352497504,1739137889717,-500.0,0.00013424,2]
[352497505,1739137889728,-22724.31,0.00013424,2]
[352497506,1739137889737,-584.12,0.00013424,2]
[352497507,1739137889747,-2591.58,0.00013424,2]
[352497508,1739137889757,-512.6,0.00013424,2]
[352497509,1739137889767,-1831.71,0.00013424,2]
[352497510,1739137889776,-1387.72,0.00013424,2]
[352497511,1739137889789,-554.21410111,0.00013424,2]
[352497512,1739137889800,-4876.14,0.00013424,2]
[352497513,1739137889811,-500.0,0.00013424,2]
[352497514,1739137889821,-556.97415028,0.00013424,2]
[352497515,1739137889831,-500.0,0.00013424,2]
[352497516,1739137889842,-1527.52,0.00013424,2]
[352497517,1739137889852,-277.99,0.00013424,2]
[352497518,1739137889863,-1081.99,0.00013424,2]
[352497519,1739137889873,-224.28772442,0.00013452,2]
[352497520,1739137889884,-1483.12351443,0.00013467,2]
[352497521,1739137889894,-25000.0,0.000135,10]
[352497522,1739137889904,-16191.35680879,0.000135,13]
[352497523,1739137889914,-20632.45262359,0.000135,2]
[352497524,1739137889924,-224.28772442,0.00013507,2]
[352497525,1739137889935,-22194.50040359,0.0001354,5]
[352497526,1739137889946,-234.95216232,0.00013561,2]
[352497527,1739137889956,-511.53,0.00013561,2]
[352497528,1739137889965,-231.36114,0.00013561,2]
[352497529,1739137889974,-279.69419579,0.00013561,2]
[352497530,1739137889984,-500.0,0.00013561,2]
[352497531,1739137889995,-738.43,0.00013561,2]
[352497532,1739137890005,-517.69,0.00013561,2]
[352497533,1739137890015,-503.93,0.00013561,2]
[352497534,1739137890026,-1103.48,0.00013561,2]
[352497535,1739137890040,-724.02,0.00013561,2]
[352497536,1739137890051,-194.71938614,0.00013561,2]
[352497537,1739137890062,-824.2,0.00013561,2]
[352497538,1739137890073,-824.85,0.00013561,2]
[352497539,1739137890086,-633.47,0.00013561,2]
[352497540,1739137890099,-660.79,0.00013561,2]
[352497541,1739137890110,-1548.94,0.00013561,2]
[352497542,1739137890121,-1271.62,0.00013561,2]
[352497543,1739137890134,-1526.67,0.00013561,2]
[352497544,1739137890144,-1037.54,0.00013561,2]
[352497545,1739137890153,-1491.1,0.00013561,2]
[352497546,1739137890164,-500.0,0.00013561,2]
[352497547,1739137890173,-774.85,0.00013561,2]
[352497548,1739137890184,-1332.36,0.00013561,2]
[352497549,1739137890196,-784.54,0.00013561,2]
[352497550,1739137890209,-884.06,0.00013561,2]
[352497551,1739137890220,-1472.41,0.00013561,2]
[352497552,1739137890232,-770.2,0.00013561,2]
[352497553,1739137890243,-337.13539714,0.00013561,2]
[352497554,1739137890254,-500.0,0.00013561,2]
[352497555,1739137890265,-500.0,0.00013561,2]
[352497556,1739137890275,-788.28,0.00013561,2]
[352497557,1739137890289,-567.03,0.00013561,2]
[352497558,1739137890299,-596.87,0.00013561,2]
[352497559,1739137890309,-500.0,0.00013561,2]
[352497560,1739137890320,-1144.56,0.00013561,2]
[352497561,1739137890330,-500.0,0.00013561,2]
[352497562,1739137890340,-528.07,0.00013561,2]
[352497563,1739137890349,-1316.1,0.00013561,2]
[352497564,1739137890360,-533.35,0.00013561,2]
[352497565,1739137890370,-1927.7,0.00013561,2]
[352497566,1739137890379,-7284.82,0.00013561,2]
[352497567,1739137890390,-847.12,0.00013561,2]
[352497568,1739137890399,-954.01,0.00013561,2]
[352497569,1739137890409,-2180.19,0.00013561,2]
[352497570,1739137890419,-842.26,0.00013561,2]
[352497571,1739137890428,-883.86,0.00013561,2]
[352497572,1739137890438,-500.0,0.00013561,2]
[352497573,1739137890448,-500.0,0.00013561,2]
[352497574,1739137890458,-43935.02,0.00013561,2]
[352497575,1739137890468,-2712.8,0.00013561,2]
[352497576,1739137890481,-860.57,0.00013561,2]
[352497577,1739137890492,-2341.03,0.00013561,2]
[352497578,1739137890503,-3861.99,0.00013561,2]
[352497579,1739137890514,-1171.53,0.00013561,2]
[352497580,1739137890524,-883.39,0.00013561,2]
[352497581,1739137890534,-3532.66,0.00013561,2]
[352497582,1739137890545,-500.0,0.00013561,2]
[352497583,1739137890555,-895.17,0.00013561,2]
[352497584,1739137890566,-4555.54,0.00013561,2]
[352497585,1739137890575,-1716.4,0.00013561,2]
[352497586,1739137890586,-500.0,0.00013561,2]
[352497587,1739137890595,-500.0,0.00013561,2]
[352497588,1739137890605,-22724.31,0.00013561,2]
[352497589,1739137890615,-584.12,0.00013561,2]
[352497590,1739137890626,-2591.58,0.00013561,2]
[352497591,1739137890636,-512.6,0.00013561,2]
[352497592,1739137890646,-1831.71,0.00013561,2]
[352497593,1739137890656,-1387.72,0.00013561,2]
[352497594,1739137890666,-4876.14,0.00013561,2]
[352497595,1739137890676,-500.0,0.00013561,2]
[352497596,1739137890686,-500.0,0.00013561,2]
[352497597,1739137890695,-1527.52,0.00013561,2]
[352497598,1739137890742,-1081.99,0.00013561,2]
[352497599,1739137890752,-224.28772442,0.00013562,2]
[352497600,1739137890762,-1483.12351443,0.00013567,2]
[352497601,1739137890772,-160.0,0.00013587,10]
[352497602,1739137890782,-2000.0,0.000136,2]
[352497603,1739137890796,-11027.76137854,0.00013618,4]
[352497604,1739137890805,-152.0,0.00013638,2]
[352497605,1739137890815,-224.28772442,0.00013644,2]
[352497606,1739137890826,-154.56,0.00013651,2]
[352497607,1739137890835,-1483.12351443,0.00013667,2]
[352497608,1739137890845,-500.0,0.00013698,14]
[352497609,1739137890855,-500.0,0.00013698,14]
[352497610,1739137890864,-500.0,0.00013698,14]
[352497611,1739137890874,-413.36635637,0.00013698,14]
[352497612,1739137890883,-511.53,0.00013698,2]
[352497613,1739137890893,-500.0,0.00013698,2]
[352497614,1739137890903,-738.43,0.00013698,2]
[352497615,1739137890913,-517.69,0.00013698,2]
[352497616,1739137890923,-503.93,0.00013698,2]
[352497617,1739137890932,-1103.48,0.00013698,2]
[352497618,1739137890942,-724.02,0.00013698,2]
[352497619,1739137890952,-824.2,0.00013698,2]
[352497620,1739137890962,-500.0,0.00013698,2]
[352497621,1739137890971,-500.0,0.00013698,2]
[352497622,1739137890981,-500.0,0.00013698,2]
[352497623,1739137890991,-500.0,0.00013698,2]
[352497624,1739137891001,-500.0,0.00013698,2]
[352497625,1739137891011,-500.0,0.00013698,2]
[352497626,1739137891021,-212.05432,0.00013698,2]
[352497627,1739137891030,-824.85,0.00013698,2]
[352497628,1739137891041,-633.47,0.00013698,2]
[352497629,1739137891050,-660.79,0.00013698,2]
[352497630,1739137891060,-500.0,0.00013698,2]
[352497631,1739137891069,-1548.94,0.00013698,2]
[352497632,1739137891079,-1271.62,0.00013698,2]
[352497633,1739137891088,-1526.67,0.00013698,2]
[352497634,1739137891101,-1037.54,0.00013698,2]
[352497635,1739137891110,-1491.1,0.00013698,2]
[352497636,1739137891120,-500.0,0.00013698,2]
[352497637,1739137891130,-419.08025244,0.00013698,2]
[352497638,1739137891141,-774.85,0.00013698,2]
[352497639,1739137891152,-191.4654012,0.00013698,2]
[352497640,1739137891162,-1332.36,0.00013698,2]
[352497641,1739137891172,-784.54,0.00013698,2]
[352497642,1739137891185,-884.06,0.00013698,2]
[352497643,1739137891195,-1472.41,0.00013698,2]
[352497644,1739137891205,-770.2,0.00013698,2]
[352497645,1739137891215,-1000.0,0.00013698,2]
[352497646,1739137891224,-1000.0,0.00013698,2]
[352497647,1739137891233,-1000.0,0.00013698,2]
[352497648,1739137891242,-1000.0,0.00013698,2]
[352497649,1739137891252,-1000.0,0.00013698,2]
[352497650,1739137891261,-1000.0,0.00013698,2]
[352497651,1739137891271,-1000.0,0.00013698,2]
[352497652,1739137891282,-1000.0,0.00013698,2]
[352497653,1739137891294,-1000.0,0.00013698,2]
[352497654,1739137891305,-1000.0,0.00013698,2]
[352497655,1739137891315,-1000.0,0.00013698,2]
[352497656,1739137891325,-1000.0,0.00013698,2]
[352497657,1739137891335,-1000.0,0.00013698,2]
[352497658,1739137891345,-377.91,0.00013698,2]
[352497659,1739137891355,-401.5375172,0.00013698,2]
[352497660,1739137891365,-500.0,0.00013698,2]
[352497661,1739137891375,-788.28,0.00013698,2]
[352497662,1739137891385,-567.03,0.00013698,2]
[352497663,1739137891394,-596.87,0.00013698,2]
[352497664,1739137891405,-500.0,0.00013698,2]
[352497665,1739137891415,-1144.56,0.00013698,2]
[352497666,1739137891425,-600.08336796,0.00013698,2]
[352497667,1739137891434,-528.07,0.00013698,2]
[352497668,1739137891444,-1316.1,0.00013698,2]
[352497669,1739137891455,-533.35,0.00013698,2]
[352497670,1739137891465,-1927.7,0.00013698,2]
[352497671,1739137891475,-7284.82,0.00013698,2]
[352497672,1739137891486,-847.12,0.00013698,2]
[352497673,1739137891497,-954.01,0.00013698,2]
[352497674,1739137891507,-2180.19,0.00013698,2]
[352497675,1739137891517,-842.26,0.00013698,2]
[352497676,1739137891527,-883.86,0.00013698,2]
[352497677,1739137891539,-500.0,0.00013698,2]
[352497678,1739137891549,-500.0,0.00013698,2]
[352497679,1739137891558,-43935.02,0.00013698,2]
[352497680,1739137891568,-2712.8,0.00013698,2]
[352497681,1739137891578,-860.57,0.00013698,2]
[352497682,1739137891588,-2341.03,0.00013698,2]
[352497683,1739137891598,-3861.99,0.00013698,2]
[352497684,1739137891608,-1171.53,0.00013698,2]
[352497685,1739137891619,-883.39,0.00013698,2]
[352497686,1739137891629,-3532.66,0.00013698,2]
[352497687,1739137891639,-500.0,0.00013698,2]
[352497688,1739137891649,-895.17,0.00013698,2]
[352497689,1739137891659,-4555.54,0.00013698,2]
[352497690,1739137891669,-1716.4,0.00013698,2]
[352497691,1739137891679,-500.0,0.00013698,2]
[352497692,1739137891688,-159.49983315,0.00013698,2]
[352497693,1739137891699,-22724.31,0.00013698,2]
[352497694,1739137891708,-584.12,0.00013698,2]
[352497695,1739137891719,-2591.58,0.00013698,2]
[352497696,1739137891729,-512.6,0.00013698,2]
[352497697,1739137891739,-1831.71,0.00013698,2]
[352497698,1739137891749,-1387.72,0.00013698,2]
[352497699,1739137891759,-4876.14,0.00013698,2]
[352497700,1739137891769,-420.0007066,0.00013698,2]
[352497701,1739137891778,-500.0,0.00013698,2]
[352497702,1739137891790,-1527.52,0.00013698,2]
[352497703,1739137891800,-1081.99,0.00013698,2]
[352497704,1739137891810,-35958.67581812,0.00013698,5]
[352497705,1739137891820,-500.0,0.00013699,2]
[352497706,1739137891829,-500.0,0.00013699,2]
[352497707,1739137891839,-500.0,0.00013699,2]
[352497708,1739137891848,-245.40381372,0.00013699,2]
[352497709,1739137891858,-533.80251604,0.00013699,2]
[352497710,1739137891868,-500.0,0.00013699,2]
[352497711,1739137891877,-500.0,0.00013699,2]